Cogmind - Beta 11.1 *** ADVENTURER MODE // 2022.05.16 @ 23:16:16 Player: Fgdfgfthgr Result: Self-destructed Performance ------------- Evolutions (6) 3000 Regions Visited (26) 5200 Robots Destroyed (421) 2105 Value Destroyed (17445) 17445 Prototype IDs (238) 4760 Alien Tech Used (1) 200 Bonus (8958) 8958 TOTAL SCORE: 41668 Bonus ------- High Alert Combat Kills 3469 Follower Combat Kills 742 Network Hubs Disabled 200 Met Data Miner 300 Used Data Conduit 3000 Met Imprinter 300 Destroyed Z-Imprinter 1000 Triggered Deep Caves Wall 500 Exposed GOLEM Chamber 500 Met R17 at Cetus 500 Friendly Fire -1553 Cogmind --------- Core Integrity 553/1150 Matter 300/300 Energy 408/1350 System Corruption 4% Temperature Cool (0) Movement Walking (180) Ox1 Location -4/Armory Parts ------- > --- POWER (2) -------- Quantum Reactor > --- PROPULSION (3) --- Enhanced Biometal Leg Assembled Alloy Leg Centrium Leg > --- UTILITY (13) ----- Advanced Heat Sink High-capacity Storage Unit Assembled Biocell Array Enhanced Optical Array Advanced Signal Interpreter Assembled Alloy Armor Improved System Shield GOLEM Unit > --- WEAPON (2) ------- Assembled Focal Cannon > --- INVENTORY (20) --- Flexi-carbon Leg Myomer Leg Enhanced Biometal Leg Enhanced Biometal Leg Experimental EM Disruption Field GOLEM Unit Cooled Proton Cannon Enhanced Nova Cannon 8R-AWN's Boregun Gamma Bomb Array Heavy Rocket Launcher Heavy Rocket Launcher Long-range Missile Launcher Gravity Flail Peak State ------------ > --- POWER ------------ Quantum Reactor Quantum Reactor > --- PROPULSION ------- Enhanced Biometal Leg Enhanced Biometal Leg Enhanced Biometal Leg > --- UTILITY ---------- Advanced Power Amplifier Advanced Coolant Injector High-capacity Storage Unit Assembled Biocell Array Advanced Gravity Neutralizer Enhanced Optical Array Experimental Sensor Array Surveybot 24 Chip Advanced Weapon Cycler Centrium Medium Armor Plating Light Regenerative Plating Advanced Force Field Improved System Shield > --- WEAPON ----------- EMDS > --- INVENTORY -------- Particle Reactor Enhanced Biometal Leg Enhanced Biometal Leg Advanced Heat Sink Advanced Signal Interpreter Advanced Terrain Scanner Experimental EM Disruption Field Thief Drone Bay GOLEM Unit GOLEM Unit Cooled Proton Cannon EMDS 8R-AWN's Boregun 8R-AWN's Boregun Long-range Missile Launcher RU-N14's Throwing Claymores Gravity Flail [Rating: 169] Favorites ----------- Power Light Nuclear Core Engine Heavy Deuterium Engine Power Core Light Nuclear Core Reactor Quantum Reactor Propulsion Light Treads Treads Light Treads Leg Advanced Myomer Leg Utility Core Analyzer Device Experimental Sensor Array Storage High-capacity Storage Unit Processor Core Analyzer Hackware Improved System Shield Protection Light Regenerative Plating Weapon Advanced Beam Cannon Energy Gun Precision Beam Rifle Energy Cannon Advanced Beam Cannon Ballistic Gun 8R-AWN's Boregun Ballistic Cannon Light Cannon Launcher Long-range Missile Launcher Special Weapon RU-N14's Throwing Claymores Special Melee Weapon Improved Datajack Build | -11 -10 -10 -9 -9 -9 -8 -8 -8 -7 -7 -7 -7 -6 -6 -6 -6 -6 -6 -5 -5 -5 -5 -5 -5 -4 -4 ------- Run | Scr Mat Min Mat Min Exi Min Mat Sto Fac Low Low Dat Pro Fac Low Low Zio Dee Pro Fac Ext Cet Arc Hub Fac Arm Slots Evolved 12 | . . . 2 . . . 2 . 2 . . . . 2 . . . . . 2 . . . . 2 . Power 1 | . . . . . . . . . . . . . . 1 . . . . . . . . . . . . Propulsion 1 | . . . 1 . . . . . . . . . . . . . . . . . . . . . . . Utility 10 | . . . 1 . . . 2 . 2 . . . . 1 . . . . . 2 . . . . 2 . Weapon . | . . . . . . . . . . . . . . . . . . . . . . . . . . . Parts Attached 353 | . 8 14 24 19 2 . 42 27 36 9 . 9 13 9 3 3 10 27 3 10 8 7 . 7 17 46 Power 30 | . . 2 1 . . . 4 3 3 . . . 2 1 . . 1 1 . . . 3 . 1 . 8 Engine 7 | . . . . . . . 2 1 3 . . . 1 . . . . . . . . . . . . . Core 10 | . . 2 1 . . . 2 2 . . . . 1 . . . 1 1 . . . . . . . . Reactor 13 | . . . . . . . . . . . . . . 1 . . . . . . . 3 . 1 . 8 Propulsion 56 | . 2 . 9 3 . . 11 7 4 . . 1 1 2 . . 2 3 . 1 . . . 5 . 5 Treads 32 | . 2 . 9 3 . . 11 7 . . . . . . . . . . . . . . . . . . Leg 24 | . . . . . . . . . 4 . . 1 1 2 . . 2 3 . 1 . . . 5 . 5 Wheel . | . . . . . . . . . . . . . . . . . . . . . . . . . . . Hover . | . . . . . . . . . . . . . . . . . . . . . . . . . . . Flight . | . . . . . . . . . . . . . . . . . . . . . . . . . . . Utility 132 | . 4 4 5 4 . . 16 4 18 5 . 2 6 6 1 1 2 10 3 8 5 4 . . 9 15 Device 65 | . 1 2 2 3 . . 5 . 10 3 . 1 1 2 1 . 1 4 3 4 3 3 . . 8 8 Storage 6 | . 1 . 1 . . . . . 2 . . . . 1 . . . . . . 1 . . . . . Processor 8 | . . . . . . . 3 . 2 . . . . 1 . . . . . 1 . . . . . 1 Hackware 7 | . . . 1 . . . 1 . 1 . . . . . . . . . . 2 . . . . 1 1 Protection 46 | . 2 2 1 1 . . 7 4 3 2 . 1 5 2 . 1 1 6 . 1 1 1 . . . 5 Artifact . | . . . . . . . . . . . . . . . . . . . . . . . . . . . Weapon 135 | . 2 8 9 12 2 . 11 13 11 4 . 6 4 . 2 2 5 13 . 1 3 . . 1 8 18 Energy Gun 21 | . 1 3 . . . . 8 6 1 . . . . . . . 1 1 . . . . . . . . Energy Cannon 41 | . . . 5 5 1 . 1 1 3 2 . 3 2 . 1 1 3 2 . . . . . 1 2 8 Ballistic Gun 31 | . . 4 . 5 . . . 4 3 . . 1 1 . . . . . . . 2 . . . 4 7 Ballistic Cannon 1 | . . . 1 . . . . . . . . . . . . . . . . . . . . . . . Launcher 24 | . 1 1 3 . 1 . 2 1 4 2 . 1 1 . 1 1 . 1 . . 1 . . . 1 2 Special Weapon 11 | . . . . 1 . . . . . . . . . . . . . 7 . 1 . . . . 1 1 Impact Weapon . | . . . . . . . . . . . . . . . . . . . . . . . . . . . Slashing Weapon . | . . . . . . . . . . . . . . . . . . . . . . . . . . . Piercing Weapon . | . . . . . . . . . . . . . . . . . . . . . . . . . . . Special Melee Weapon 6 | . . . . 1 . . . 1 . . . 1 . . . . 1 2 . . . . . . . . Unidentified Prototypes 20 | . . 2 . 2 . . 1 5 2 1 . . . . . 1 . 5 . . . . . 1 . . Corrupted Parts 6 | . . 1 . . . . . 3 . . . . . 1 . . 1 . . . . . . . . . System Corruption 26 | . . 4 . . . . . 19 . . . . . 2 . . 1 . . . . . . . . . Parts Lost 33 | . 1 1 . . . . 1 . . . . 1 . . . . . 1 1 2 . . . . 2 23 Power 6 | . . 1 . . . . . . . . . . . . . . . . . . . . . . . 5 Propulsion 4 | . . . . . . . 1 . . . . 1 . . . . . . . . . . . . . 2 Utility 19 | . 1 . . . . . . . . . . . . . . . . 1 1 2 . . . . 2 12 Weapon 4 | . . . . . . . . . . . . . . . . . . . . . . . . . . 4 Highest Loss Streak 7 | . 1 1 . . . . 1 . . . . 1 . . . . . 1 1 1 . . . . 1 7 To Critical Strikes 1 | . . . . . . . . . . . . . . . . . . . . . . . . . . 1 Average Slot Usage (%) 97 | . 98 99 100 100 100 100 96 99 99 100 100 99 99 100 100 99 95 93 89 92 93 98 100 98 95 91 Engine 2 | . 14 6 . . . . 5 . 5 7 7 7 6 6 6 6 . . . . . . . . . . Core 4 | . . 7 11 11 11 11 3 9 1 . . . . . . . 5 2 . . . . . . . . Reactor 2 | . . . . . . . . . . . . . . 6 6 6 6 5 6 5 5 9 11 11 10 9 Treads 14 | . 25 28 33 33 33 33 26 27 . . . . . . . . . . . . . . . . . . Leg 9 | . 2 . . . . . . . 23 23 23 22 22 20 20 19 18 17 18 16 16 16 16 16 15 14 Device 9 | . 7 . 11 11 11 11 9 9 7 5 7 4 5 7 6 6 8 5 5 13 15 16 16 16 26 25 Storage 9 | . 14 14 11 11 11 11 9 9 7 7 7 7 7 6 6 6 6 6 12 11 11 11 11 11 10 9 Processor 13 | . . . . . . . 7 18 28 30 30 30 30 26 26 25 25 18 12 15 16 16 16 16 13 13 Hackware 2 | . . . 5 . . . 5 . . . . . . . . . . . . 4 5 5 5 5 5 5 Protection 10 | . 5 13 5 11 11 11 11 9 7 8 7 9 8 11 13 12 12 20 21 13 11 11 11 11 10 7 Energy Gun 4 | . 14 3 . . . . 16 14 . . . . . . . . 1 1 . . . . . . . . Energy Cannon 8 | . . . 20 17 21 22 1 . 5 14 15 11 14 13 13 12 8 5 12 8 5 5 5 5 3 4 Ballistic Gun 2 | . 14 21 . 3 . . . 3 8 . . . . . . . . . . . 3 5 5 3 1 1 Naked Turns . | . . . . . . . . . . . . . . . . . . . . . . . . . . . Heaviest Build 138 | 13 53 58 101 108 103 101 110 101 71 71 70 72 83 90 90 90 90 126 126 131 131 132 130 130 138 133 Greatest Support 106 | 20 40 40 63 63 63 63 63 60 80 80 80 90 90 90 90 90 90 90 90 90 90 90 90 90 106 106 Greatest Overweight (x) 2 | . 1 1 1 1 1 1 2 1 . . . 1 1 1 . . 1 1 1 1 1 1 1 1 1 1 Average Overweight (x) . | . . 1 . 1 1 1 1 1 . . . . . . . . . . 1 1 1 1 1 1 1 . Largest Inventory Capacity 25 | . 20 20 25 25 25 25 25 25 25 20 20 20 20 20 20 20 20 20 20 20 20 20 20 20 20 20 Average Capacity 21 | . 19 20 24 25 25 25 25 25 20 20 20 20 20 20 20 20 20 20 20 20 20 20 20 20 20 20 Most Carried 25 | . 20 20 25 25 25 25 25 25 25 20 20 20 20 20 20 20 20 20 20 18 20 20 20 20 20 20 Average Carried 21 | . 13 19 23 24 25 25 24 24 19 19 20 19 19 19 20 20 19 19 19 16 18 19 19 19 19 17 Final Capacity 25 | 8 20 20 25 25 25 25 25 25 20 20 20 20 20 20 20 20 20 20 20 20 20 20 20 20 20 20 Final Carried 25 | 6 20 20 24 25 25 25 25 25 20 20 20 20 20 20 20 20 20 20 19 16 20 20 20 20 20 15 Class Distribution -------------------- 45% | Mutant 23% | Hacker-Mutant 16% | Skirmisher 7% | Scavenger-Mutant Dominant Class ---------------- Mutant | -10/Materials Mutant | -10/Mines Hacker-Mutant | -9/Materials Mutant | -9/Mines Mutant | -9/Exiles Mutant | -8/Mines Hacker-Mutant | -8/Materials Mutant | -8/Storage Skirmisher | -7/Factory Skirmisher | -7/Lower Caves Skirmisher | -7/Lower Caves Mutant | -7/Data Miner Skirmisher | -6/Proximity Caves Mutant | -6/Factory Skirmisher | -6/Lower Caves Skirmisher | -6/Lower Caves Skirmisher | -6/Zion Mutant | -6/Deep Caves Mutant | -5/Proximity Caves Hacker-Mutant | -5/Factory Hacker-Mutant | -5/Extension Hacker-Mutant | -5/Cetus Hacker-Mutant | -5/Archives Hacker-Mutant | -5/Hub_04(d) Scavenger-Skirmisher | -4/Factory Scavenger-Mutant | -4/Armory Resources | -11 -10 -10 -9 -9 -9 -8 -8 -8 -7 -7 -7 -7 -6 -6 -6 -6 -6 -6 -5 -5 -5 -5 -5 -5 -4 -4 ----------- Run | Scr Mat Min Mat Min Exi Min Mat Sto Fac Low Low Dat Pro Fac Low Low Zio Dee Pro Fac Ext Cet Arc Hub Fac Arm Matter Collected 7518 | 200 131 222 428 378 170 . 470 357 620 225 . 125 204 71 79 55 76 176 143 85 201 226 60 240 539 2037 Remotely . | . . . . . . . . . . . . . . . . . . . . . . . . . . . Salvage Created 20135 | . 411 223 1468 274 11 104 1891 2055 903 606 . 412 607 71 46 50 . 447 598 415 428 798 406 697 2045 5169 Parts 949 | . 29 15 117 11 . 5 106 87 50 20 . 19 19 5 3 3 . 31 25 20 16 42 16 35 86 189 Haulers Intercepted 27 | . 2 . 6 . . . 6 5 2 1 . . . . . . . . . 1 . . . 1 3 . Recyclers Shooed 1 | . . . . 1 . . . . . . . . . . . . . . . . . . . . . . Parts Field Recycled . | . . . . . . . . . . . . . . . . . . . . . . . . . . . Retrieved Matter . | . . . . . . . . . . . . . . . . . . . . . . . . . . . Parts Self-Destructed 59 | . . . . . . . . . . 12 . . 17 . 3 3 . . 24 . . . . . . . Prevented 11 | . . . . . . . . . . 6 . . 5 . . . . . . . . . . . . . Kills | -11 -10 -10 -9 -9 -9 -8 -8 -8 -7 -7 -7 -7 -6 -6 -6 -6 -6 -6 -5 -5 -5 -5 -5 -5 -4 -4 ------- Run | Scr Mat Min Mat Min Exi Min Mat Sto Fac Low Low Dat Pro Fac Low Low Zio Dee Pro Fac Ext Cet Arc Hub Fac Arm Combat Hostiles Destroyed 329 | . 12 2 31 4 7 4 34 23 16 9 . 4 9 1 4 3 . 11 12 9 6 10 4 9 27 78 Guns 97 | . 10 2 1 2 . . 24 19 7 . . . 1 . . . . 1 . . 1 3 2 3 4 17 Cannons 115 | . . . 17 2 . 4 3 . 4 2 . 1 8 1 . 1 . 2 12 5 5 7 2 6 7 26 AOE 75 | . 2 . 11 . 7 . 7 . 5 6 . 1 . . 4 2 . 8 . 4 . . . . 10 8 Classes Destroyed 24 | . 4 2 4 2 1 1 . 1 . 1 . . . . . . . 3 1 1 . . . . . 3 Worker 14 | . . . 2 1 . . 1 1 3 . . . . . . . . . . 1 . . . 3 2 . Builder 9 | . . 1 2 . . . 2 . 1 . . . . . . . . . . . . . . 1 2 . Tunneler 5 | . . 2 1 . . . 1 . 1 . . . . . . . . . . . . . . . . . Hauler 27 | . 2 . 6 . . . 6 5 2 1 . . . . . . . . . 1 . . . 1 3 . Recycler 11 | . . . 1 . . . . 7 2 . . . . . . . . . . . . . . . 1 . Minesweeper 1 | . . . . . . . . . . 1 . . . . . . . . . . . . . . . . Mechanic 1 | . . . . . . . . . . . . . . . . . . . . . . . . . . 1 Operator 4 | . . . 2 . . . . 1 . . . . . . . . . . . . . . . . . 1 Watcher 28 | . 3 . 5 . . . 5 2 3 . . . . . . . . . . 2 . 2 . 1 1 4 Swarmer 82 | . 8 . 14 . . 3 10 . 10 . . . . . 4 3 . . 5 5 . . . 5 5 10 Saboteur 4 | . . . . . . . . . . . . . . . . . . . . . . . . . . 4 Grunt 102 | . 4 2 7 1 . . 14 11 3 8 . . 4 . . . . . 4 . 2 . . . 14 28 Brawler 9 | . . . . . . . . 2 1 . . . . . . . . . . . . . . . 1 5 Duelist 12 | . . . . 1 . . . . 1 1 . . 4 . . . . . . . . . . . . 5 Protector 1 | . . . . . . . . . . . . . . . . . . . . . . . . . . 1 Sentry 48 | . . . 10 . . . 9 9 2 . . . 1 1 . . . . 1 1 4 . 4 1 . 5 Demolisher 8 | . . . . 1 . . . . . . . . . . . . . . . . . . . . . 7 Hunter 10 | . . . . . . 1 1 1 . . . . . . . . . . 1 . . . . . 2 4 Programmer 16 | . . . . . . . . . . . . . . . . . . . . 2 . 2 . . 4 8 Behemoth 4 | . . . . . . . . . . . . . . . . . . . 1 1 . . . . 1 1 Cetus Guard 8 | . . . . . . . . . . . . . . . . . . . . . . 8 . . . . Enhanced Grunt 4 | . . . . . . . . . . . . 4 . . . . . . . . . . . . . . Lightning 3 | . . . . . . . . . . . . . . . . . . . . . . . . 3 . . Z-Light 8 | . . . . . . . . . . . . . . . . . . 8 . . . . . . . . Assembler 2 | . . . . . . . . . . . . . . . . . . 2 . . . . . . . . Assembled 8 | . . . . . 7 . . . . . . . . . . . . 1 . . . . . . . . Golem 1 | . . . . . . . . . . . . . . . . . . 1 . . . . . . . . Best Kill Streak 13 | . 4 2 10 2 7 3 5 3 6 4 . 4 7 1 4 2 . 5 3 6 2 5 4 7 9 13 Combat Bots Only 13 | . 3 2 10 2 7 3 4 3 5 4 . 4 7 1 4 2 . 5 3 6 2 4 4 5 7 13 Max Kills in Single Turn 5 | . 2 1 3 1 3 1 5 2 3 2 . 1 1 1 3 2 . 2 1 3 1 1 1 2 3 2 Gunslinging 1 | . . . . . . . 1 . . . . . . . . . . . . . . . . . . . Exploded 4 | . 2 . 3 . 3 . 4 . 2 2 . 1 . . 3 2 . 2 . 3 . . . . 3 2 Melee . | . . . . . . . . . . . . . . . . . . . . . . . . . . . Uniques/NPCs Destroyed 3 | . . 1 . 1 . . . . . . . . . . . . . 1 . . . . . . . . YI-UF0 (-10/Mines) 8R-AWN (-9/Mines) Z-Imprinter (-6/Deep Caves) Combat | -11 -10 -10 -9 -9 -9 -8 -8 -8 -7 -7 -7 -7 -6 -6 -6 -6 -6 -6 -5 -5 -5 -5 -5 -5 -4 -4 -------- Run | Scr Mat Min Mat Min Exi Min Mat Sto Fac Low Low Dat Pro Fac Low Low Zio Dee Pro Fac Ext Cet Arc Hub Fac Arm Damage Taken 11691 | . 249 108 312 236 151 173 1095 724 411 68 . 545 985 44 11 . . 804 572 176 286 151 55 235 548 3752 Core 1526 | . 65 . 44 8 . 22 123 111 67 15 . 36 172 8 . . . 183 16 . 24 19 . 16 34 563 Absorbed by Shields 1960 | . . . . . . . 5 . . . . . . . . . . . . 103 258 157 56 244 579 558 Redirected to Shielding 245 | . . . . . . . . . . . . . 28 2 . . . 32 93 80 10 . . . . . Regen/Repaired (Parts) 1405 | . . . 11 . . . 126 140 60 26 . 29 254 80 133 . . 155 52 18 80 25 31 20 71 94 Core Remaining (%) 77 | 100 . 74 . . . 81 . 57 . . . . 58 . . . . . 75 . . . . 94 . . Volleys Fired 931 | . 47 19 68 38 8 9 94 93 52 18 . 11 26 20 2 3 5 25 28 22 27 30 11 24 50 201 Largest 2 | . 2 2 2 2 2 2 2 2 2 2 . 2 2 1 1 2 1 2 2 2 2 2 2 2 2 2 Hottest 171 | . 70 120 136 136 136 136 136 122 94 60 . 90 120 90 43 120 90 171 50 50 55 55 55 70 70 145 Shots Fired 1513 | . 91 38 132 62 10 18 186 182 88 26 . 13 40 20 2 4 5 37 56 29 38 56 21 39 64 256 Gun 763 | . 90 37 4 32 . . 160 181 59 . . . 9 . . . . 6 . . 16 26 10 15 25 93 Cannon 646 | . . . 123 16 4 18 24 . 22 16 . 5 27 20 . 3 5 9 56 25 21 30 11 24 34 153 Launcher 60 | . 1 1 5 . 6 . 2 1 7 10 . 8 4 . 2 1 . . . . 1 . . . 2 9 Special 44 | . . . . 14 . . . . . . . . . . . . . 22 . 4 . . . . 3 1 Kinetic 388 | . 46 16 25 32 . . . 19 56 . . . 9 . . . . . . . 16 26 10 15 25 93 Thermal 891 | . 44 11 102 30 4 18 184 162 25 16 . 5 27 20 . 3 5 15 56 25 21 30 11 16 . 61 Explosive 62 | . 1 1 5 . 6 . 2 1 7 . . . . . 2 1 . 22 . 4 1 . . . 5 4 Electromagnetic 172 | . . 10 . . . . . . . 10 . 8 4 . . . . . . . . . . 8 34 98 Robot Hit Streak 86 | . 22 17 26 23 2 13 26 31 12 7 . 8 24 2 3 5 . 33 19 19 22 71 86 4 19 43 Robot Miss Streak 3 | . 2 2 3 1 1 1 1 2 3 2 . 1 1 1 . . . . 3 1 2 . 1 3 2 2 Penetration Max 2 | . . . . . . . . . . . . . . . . . . . . . 2 1 . 2 1 2 Secondary Targets 12 | . 1 . . . . . 5 3 1 . . . . . . . . . . . . . . . 2 . Max Gunslinging Chain 1 | . 1 . . . . . 1 1 1 . . . . . . . . . . . . . . . 1 . Shots Hit Robots 1125 | . 65 30 86 59 2 15 155 139 52 16 . 7 24 2 1 2 4 30 42 16 31 49 18 20 47 213 Core Hits 680 | . 27 15 52 16 17 6 82 61 43 20 . 21 19 2 4 4 . 33 15 14 14 26 8 15 39 127 Critical Kills 31 | . . . 4 . . . . . . . . . 1 . . . . . . . . 2 2 3 3 16 Critical Parts Destroyed 46 | . . . . . . . . . . . . . 1 . . . . . . . 4 5 1 2 10 23 Critical Strikes 148 | . 1 1 4 3 . . 6 17 . . . . 2 . . . . 1 . . 5 7 3 9 20 69 Burn 26 | . 1 1 . . . . 6 17 . . . . . . . . . 1 . . . . . . . . Meltdown 4 | . . . 3 . . . . . . . . . . . . . . . . . . . . . . 1 Destroy 94 | . . . 1 3 . . . . . . . . 2 . . . . . . . 5 7 3 6 13 54 Corrupt 24 | . . . . . . . . . . . . . . . . . . . . . . . . 3 7 14 Melee Attacks 10 | . . . . 2 . . . . . . . 1 . . . . 4 3 . . . . . . . . Impact . | . . . . . . . . . . . . . . . . . . . . . . . . . . . Slashing . | . . . . . . . . . . . . . . . . . . . . . . . . . . . Piercing . | . . . . . . . . . . . . . . . . . . . . . . . . . . . Sneak Attacks 6 | . . . . . . . . . . . . 1 . . . . 4 1 . . . . . . . . Combat Hostiles . | . . . . . . . . . . . . . . . . . . . . . . . . . . . Follow-up Attacks . | . . . . . . . . . . . . . . . . . . . . . . . . . . . Damage Inflicted 43010 | . 805 536 2283 906 382 314 3169 2511 2377 970 . 648 963 60 206 141 . 3442 2127 1900 1321 1889 646 844 4071 10499 Guns 11286 | . 707 420 83 521 . . 2469 2511 829 . . . 100 . . . . 146 . . 314 379 139 207 499 1962 Cannons 19843 | . . . 1680 324 . 314 371 . 395 295 . 89 533 60 . 67 . 201 2127 791 1007 1510 507 637 2114 6821 Explosions 10788 | . 98 116 520 . 382 . 329 . 1144 675 . 559 330 . 206 74 . 2405 . 941 . . . . 1329 1680 Melee . | . . . . . . . . . . . . . . . . . . . . . . . . . . . Ramming 32 | . . . . . . . . . 9 . . . . . . . . . . . . . . . 23 . Kinetic 5945 | . 263 238 312 521 . . . 220 791 . . . 100 . . . . . . . 314 379 139 207 499 1962 Thermal 19603 | . 444 151 1451 385 . 314 2840 2291 844 372 . 240 533 60 . 67 . 347 2127 951 1007 1510 507 354 . 2808 Explosive 7757 | . 98 61 520 . 382 . 329 . 733 . . . . . 206 74 . 2405 . 781 . . . . 1329 839 Electromagnetic 8673 | . . 86 . . . . . . . 598 . 408 330 . . . . . . . . . . 283 2114 4854 Impact . | . . . . . . . . . . . . . . . . . . . . . . . . . . . Slashing 1000 | . . . . . . . . . . . . . . . . . . 690 . 168 . . . . 106 36 Piercing . | . . . . . . . . . . . . . . . . . . . . . . . . . . . Highest Corruption 20 | . . 4 . . . . . 20 . . . . . 2 . . 1 . . . . . . 2 . 4 Average Corruption 1 | . . 4 . . . . . 1 . . . . . 1 . . 1 . . . . . . 1 . 2 Corruption Purged 2 | . . . . . . . . . . . . . . 2 . . . . . . . . . . . . Corruption Blocked . | . . . . . . . . . . . . . . . . . . . . . . . . . . . Effects 44 | . . 14 . . . . . 13 . . . . . 1 . . . . . . . . . 1 . 15 Message Errors 6 | . . 1 . . . . . 2 . . . . . . . . . . . . . . . . . 3 Matter Fused 8 | . . 3 . . . . . 3 . . . . . . . . . . . . . . . . . 2 Heat Flow Errors 10 | . . 4 . . . . . 5 . . . . . . . . . . . . . . . . . 1 Energy Discharges 5 | . . 1 . . . . . 2 . . . . . . . . . . . . . . . . . 2 Data Loss (minor) 3 | . . 1 . . . . . 1 . . . . . 1 . . . . . . . . . . . . Data Loss (major) 2 | . . 1 . . . . . . . . . . . . . . . . . . . . . . . 1 Misfires 2 | . . 1 . . . . . . . . . . . . . . . . . . . . . 1 . . Alerts 2 | . . 1 . . . . . . . . . . . . . . . . . . . . . . . 1 Weapon Failures 6 | . . 1 . . . . . . . . . . . . . . . . . . . . . . . 5 Overload Shots 5 | . . . . . . . . . . . . 1 . . . . 3 . . . . . . . . 1 Effects 1 | . . . . . . . . . . . . . . . . . . . . . . . . . . 1 Energy Bleed 1 | . . . . . . . . . . . . . . . . . . . . . . . . . . 1 Overflow Damage 1171 | . . . 67 22 7 . . . 111 35 . 42 . . . 3 . 124 174 180 . 12 . . 188 206 Projectiles 775 | . . . 29 22 . . . . 9 35 . 42 . . . 3 . 15 174 73 . 12 . . 177 184 Explosions 396 | . . . 38 . 7 . . . 102 . . . . . . . . 109 . 107 . . . . 11 22 Melee . | . . . . . . . . . . . . . . . . . . . . . . . . . . . Knockbacks 3 | . . . 3 . . . . . . . . . . . . . . . . . . . . . . . Impact . | . . . . . . . . . . . . . . . . . . . . . . . . . . . Kinetic 2 | . . . 2 . . . . . . . . . . . . . . . . . . . . . . . Secondary 1 | . . . 1 . . . . . . . . . . . . . . . . . . . . . . . Self-Inflicted Damage 271 | . . 77 . . . . . . 60 . . . 6 . . . . . . . . . . . . 128 Shots 13 | . . 3 . . . . . . 1 . . . 1 . . . . . . . . . . . . 8 Rammed . | . . . . . . . . . . . . . . . . . . . . . . . . . . . Targets Rammed 2 | . . . . . . . . . 1 . . . . . . . . . . . . . . . 1 . Kicked 2 | . . . . . . . . . 1 . . . . . . . . . . . . . . . 1 . Crushed . | . . . . . . . . . . . . . . . . . . . . . . . . . . . Highest Temperature 381 | . 130 336 174 309 90 270 266 244 93 6 . 36 278 381 20 72 141 105 24 4 58 262 . 176 218 199 Average Temperature 73 | . 32 114 51 94 30 115 71 49 31 3 . 22 125 136 10 30 57 42 10 4 22 94 . 92 67 77 Received Heat Transfer 3072 | . 108 21 105 33 . . 729 378 123 45 . . 324 . . . . 171 90 15 56 . 8 4 109 753 Effects 6 | . . . . . . . 3 . . . . . 1 2 . . . . . . . . . . . . Shutdowns 1 | . . . . . . . . . . . . . . 1 . . . . . . . . . . . . Energy Bleed 2 | . . . . . . . . . . . . . 1 1 . . . . . . . . . . . . Interference 3 | . . . . . . . 3 . . . . . . . . . . . . . . . . . . . Siege Activations . | . . . . . . . . . . . . . . . . . . . . . . . . . . . Robots Corrupted 37 | . . . . . . . . . . 1 . 2 . . . . . . . . . . . . 7 27 Combat Hostiles 34 | . . . . . . . . . . 1 . 2 . . . . . . . . . . . . 6 25 Parts Fried 85 | . . . . . . . . . . 5 . 3 3 . . . . . . . 1 . . 4 19 50 Impact Corruptions . | . . . . . . . . . . . . . . . . . . . . . . . . . . . Robots Melted 9 | . . . 3 . . . . 4 . . . . . . . . . . . . . . . . . 2 Combat Hostiles 8 | . . . 2 . . . . 4 . . . . . . . . . . . . . . . . . 2 Parts Melted 63 | . 4 . 11 . . 2 14 16 3 . . . . . . . . 1 . . . 2 . . . 10 Heat Transferred 25144 | . 1332 420 2664 681 . 555 6216 5903 842 507 . 274 518 74 . 37 . 296 1050 400 450 750 250 174 . 1751 Parts Sabotaged 8 | . . . . . . . . . . . . . 4 . . . . . . . . . . . . 4 Parts Stolen . | . . . . . . . . . . . . . . . . . . . . . . . . . . . Parts Stripped . | . . . . . . . . . . . . . . . . . . . . . . . . . . . Power Chain Reactions 7 | . . 1 . . . . . . . 1 . 1 1 . . . . . . . . . . . . 3 Missiles Intercepted . | . . . . . . . . . . . . . . . . . . . . . . . . . . . Alert | -11 -10 -10 -9 -9 -9 -8 -8 -8 -7 -7 -7 -7 -6 -6 -6 -6 -6 -6 -5 -5 -5 -5 -5 -5 -4 -4 ------- Run | Scr Mat Min Mat Min Exi Min Mat Sto Fac Low Low Dat Pro Fac Low Low Zio Dee Pro Fac Ext Cet Arc Hub Fac Arm Peak Influence 1715 | . 215 77 649 111 . 100 241 482 340 . . . . 156 . . . . . 407 418 182 184 329 1034 1715 Initial 436 | . . 9 . 2 . . 33 . . . . . . 49 . . . . . 99 171 32 61 . 138 436 Average 196 | . 83 15 280 31 . 34 60 121 139 . . . . 94 . . . . . 262 261 97 100 118 595 1021 Maximum Alert Level 5 | . 1 . 2 . . . 1 2 1 . . . . . . . . . . 2 2 . . 1 3 5 Low Security (%) 69 | . 99 100 32 100 . 100 97 78 66 . . . . 100 . . . . . 38 14 100 100 65 22 . Level 1 16 | . . . 34 . . . 2 18 33 . . . . . . . . . . 45 84 . . 34 . . Level 2 9 | . . . 33 . . . . 2 . . . . . . . . . . . 16 . . . . 36 24 Level 3 2 | . . . . . . . . . . . . . . . . . . . . . . . . . 39 29 Level 4 2 | . . . . . . . . . . . . . . . . . . . . . . . . . . 36 Level 5 . | . . . . . . . . . . . . . . . . . . . . . . . . . . 8 High Security . | . . . . . . . . . . . . . . . . . . . . . . . . . . . Max Security . | . . . . . . . . . . . . . . . . . . . . . . . . . . . Squads Dispatched 34 | . 2 . 3 . . . 3 8 1 . . . 1 1 . . . . . 1 . . . . 4 10 Investigation 11 | . 2 . 2 . . . 2 2 . . . . . 1 . . . . . 1 . . . . 1 . Extermination 2 | . . . . . . . . . . . . . . . . . . . . . . . . . . 2 Reinforcement 9 | . . . 1 . . . 1 3 1 . . . . . . . . . . . . . . . 1 2 Assault 11 | . . . . . . . . 2 . . . . 1 . . . . . . . . . . . 2 6 Garrison 1 | . . . . . . . . 1 . . . . . . . . . . . . . . . . . . Intercept . | . . . . . . . . . . . . . . . . . . . . . . . . . . . Searches Triggered . | . . . . . . . . . . . . . . . . . . . . . . . . . . . Construction Impeded 3 | . . . 1 . . . . . 1 . . . . . . . . . . . . . . . 1 . Haulers Reinforced . | . . . . . . . . . . . . . . . . . . . . . . . . . . . Active Scanning Responses . | . . . . . . . . . . . . . . . . . . . . . . . . . . . Cargo Convoy Interrupts . | . . . . . . . . . . . . . . . . . . . . . . . . . . . Stealth | -11 -10 -10 -9 -9 -9 -8 -8 -8 -7 -7 -7 -7 -6 -6 -6 -6 -6 -6 -5 -5 -5 -5 -5 -5 -4 -4 --------- Run | Scr Mat Min Mat Min Exi Min Mat Sto Fac Low Low Dat Pro Fac Low Low Zio Dee Pro Fac Ext Cet Arc Hub Fac Arm Distress Signals 20 | . 1 . 2 . . . 3 2 1 . . . . . . . . . . . 1 2 . 2 3 3 Communications Jammed . | . . . . . . . . . . . . . . . . . . . . . . . . . . . Distress Signals . | . . . . . . . . . . . . . . . . . . . . . . . . . . . Times Spotted 436 | . 20 2 37 12 4 4 38 35 21 11 . 4 18 2 3 1 . 26 8 11 13 11 3 11 42 99 Peak Tracking Total 10 | . 5 2 5 9 8 3 4 10 4 5 . 4 8 1 3 1 . 5 2 6 3 4 1 4 8 9 Tactical Retreats 12 | . . . . 1 . . . 1 . 1 . . 3 . . . . . . . . . . . 3 3 Traps | -11 -10 -10 -9 -9 -9 -8 -8 -8 -7 -7 -7 -7 -6 -6 -6 -6 -6 -6 -5 -5 -5 -5 -5 -5 -4 -4 ------- Run | Scr Mat Min Mat Min Exi Min Mat Sto Fac Low Low Dat Pro Fac Low Low Zio Dee Pro Fac Ext Cet Arc Hub Fac Arm Traps Triggered 14 | . . . 2 . . . 2 2 1 . . . . . . . . . . . 3 . . . 1 3 Indirectly 1 | . . . . . . . . . . . . . . . . . . . . . . . . . . 1 Trap Hack Attempts 4 | . . . . . . . . 4 . . . . . . . . . . . . . . . . . . Triggered . | . . . . . . . . . . . . . . . . . . . . . . . . . . . Disarmed 4 | . . . . . . . . 4 . . . . . . . . . . . . . . . . . . Reprogrammed 10 | . . . 4 . . . 5 1 . . . . . . . . . . . . . . . . . . Reused . | . . . . . . . . . . . . . . . . . . . . . . . . . . . Traps Extracted . | . . . . . . . . . . . . . . . . . . . . . . . . . . . Installed 1 | . . . . . . . . . . . . 1 . . . . . . . . . . . . . . Triggered 2 | . . . . 1 . . . . . 1 . . . . . . . . . . . . . . . . Most Traps Carried 1 | . . . . . . . . . . 1 1 1 . . . . . . . . . . . . . . Machines | -11 -10 -10 -9 -9 -9 -8 -8 -8 -7 -7 -7 -7 -6 -6 -6 -6 -6 -6 -5 -5 -5 -5 -5 -5 -4 -4 ---------- Run | Scr Mat Min Mat Min Exi Min Mat Sto Fac Low Low Dat Pro Fac Low Low Zio Dee Pro Fac Ext Cet Arc Hub Fac Arm Machines Disabled 40 | . . . . . 1 . 2 2 9 . . . . 1 . . 3 1 . 6 . . 1 . 6 8 Max in Single Turn 6 | . . . . . 1 . 1 1 4 . . . . 1 . . 1 1 . 6 . . 1 . 6 1 Garrison Access 5 | . . . . . . . 1 1 2 . . . . . . . . . . . . . . . 1 . Network Hub 1 | . . . . . . . . . . . . . . . . . . . . . . . . 1 . . Energy Cycler 1 | . . . . . . . . . . . . . . . . . . . . . 1 . . . . . Machines Sabotaged . | . . . . . . . . . . . . . . . . . . . . . . . . . . . Garrisons Compromised . | . . . . . . . . . . . . . . . . . . . . . . . . . . . Overloaded Fab Kills . | . . . . . . . . . . . . . . . . . . . . . . . . . . . Hacking | -11 -10 -10 -9 -9 -9 -8 -8 -8 -7 -7 -7 -7 -6 -6 -6 -6 -6 -6 -5 -5 -5 -5 -5 -5 -4 -4 --------- Run | Scr Mat Min Mat Min Exi Min Mat Sto Fac Low Low Dat Pro Fac Low Low Zio Dee Pro Fac Ext Cet Arc Hub Fac Arm Machines Accessed 101 | . 8 1 16 . 1 . 16 17 10 1 1 4 . 4 3 . . . . 4 7 . . 3 2 3 Terminals 64 | . 6 . 11 . . . 9 13 6 . . . . 3 . . . . . 3 7 . . 3 1 2 Fabricators 5 | . . . . . . . . . 1 . . . . 1 . . . . . 1 . . . . 1 1 Repair Stations 5 | . . . 1 . . . 2 1 1 . . . . . . . . . . . . . . . . . Recycling Units 8 | . 2 . 2 . . . 2 2 . . . . . . . . . . . . . . . . . . Scanalyzers 4 | . . . 2 . . . 2 . . . . . . . . . . . . . . . . . . . Garrison Access 4 | . . . . . . . 1 1 2 . . . . . . . . . . . . . . . . . Total Hacks 310 | . 26 1 46 . 1 . 56 37 26 1 1 32 . 12 6 . . . . 18 17 . . 8 9 13 Successful 229 | . 17 1 32 . 1 . 45 25 16 1 1 32 . 10 6 . . . . 15 10 . . 5 5 7 Failed 80 | . 9 . 14 . . . 10 12 10 . . . . 2 . . . . . 3 7 . . 3 4 6 Catastrophic 4 | . . . 1 . . . . . 1 . . . . . . . . . . . . . . 1 . 1 Database Lockouts 1 | . . . . . . . 1 . . . . . . . . . . . . . . . . . . . Manual 128 | . 13 . 22 . . . 25 17 8 . . . . 5 . . 8 . . 12 3 . . 4 3 8 Terminals 198 | . 20 . 36 . . . 33 32 18 . . . . 8 . . . . . 13 17 . . 8 5 8 Fabricators 21 | . . . . . . . . . 3 . . . . 4 . . . . . 5 . . . . 4 5 Repair Stations 17 | . . . 2 . . . 11 2 2 . . . . . . . . . . . . . . . . . Recycling Units 12 | . 6 . 2 . . . 2 2 . . . . . . . . . . . . . . . . . . Scanalyzers 15 | . . . 6 . . . 9 . . . . . . . . . . . . . . . . . . . Garrison Access 5 | . . . . . . . 1 1 3 . . . . . . . . . . . . . . . . . Terminal Hacks 143 | . 14 1 18 . 1 . 23 15 7 1 1 32 . 5 6 . . . . 4 9 . . 3 . 3 Record 17 | . . . . . 1 . . . . . . 11 . . 4 . . . . . 1 . . . . . Part Schematic 18 | . 1 . . . . . . 1 1 . . 12 . 2 . . . . . . 1 . . . . . Robot Schematic 6 | . . . . . . . . . . . . 6 . . . . . . . . . . . . . . Robot Analysis 7 | . 3 . 1 . . . 2 . 1 . . . . . . . . . . . . . . . . . Prototype ID Bank 19 | . 3 . 6 . . . 2 3 1 . . 3 . 1 . . . . . . . . . . . . Open Door 16 | . . 1 . . . . . 5 . 1 1 . . . 2 . . . . 1 5 . . . . . Level Access Points 2 | . . . 1 . . . . . . . . . . . . . . . . . . . . 1 . . Branch Access Points 5 | . . . 1 . . . 1 1 1 . . . . 1 . . . . . . . . . . . . Emergency Access Points 5 | . 1 . . . . . 2 . . . . . . . . . . . . 1 . . . 1 . . Terminal Index 4 | . . . 1 . . . 1 . 1 . . . . . . . . . . . . . . 1 . . Repair Station Index 2 | . . . 1 . . . 1 . . . . . . . . . . . . . . . . . . . Recycling Unit Index 1 | . 1 . . . . . . . . . . . . . . . . . . . . . . . . . Scanalyzer Index 2 | . . . 1 . . . 1 . . . . . . . . . . . . . . . . . . . Alert Level 4 | . . . . . . . 2 . . . . . . . . . . . . 1 . . . . . 1 Unreport Threat 2 | . . . . . . . 1 . . . . . . . . . . . . . . . . . . 1 Locate Traps 15 | . 3 . 3 . . . 3 3 1 . . . . 1 . . . . . . 1 . . . . . Disarm Traps 2 | . . . . . . . 1 1 . . . . . . . . . . . . . . . . . . Reprogram Traps 3 | . . . 1 . . . 2 . . . . . . . . . . . . . . . . . . . Recall Investigation 1 | . . . . . . . . 1 . . . . . . . . . . . . . . . . . . Registered Prototypes 1 | . 1 . . . . . . . . . . . . . . . . . . . . . . . . . Zone Layout 11 | . 1 . 2 . . . 4 . 1 . . . . . . . . . . 1 1 . . . . 1 Fabricator Hacks 12 | . . . . . . . . . 2 . . . . 2 . . . . . 3 . . . . 3 2 Network Status 1 | . . . . . . . . . . . . . . 1 . . . . . . . . . . . . Load Schematic 7 | . . . . . . . . . 1 . . . . 1 . . . . . 2 . . . . 2 1 Build 4 | . . . . . . . . . 1 . . . . . . . . . . 1 . . . . 1 1 Repair Station Hacks 14 | . . . 2 . . . 8 2 2 . . . . . . . . . . . . . . . . . Scan Component 7 | . . . 1 . . . 4 1 1 . . . . . . . . . . . . . . . . . Repair 7 | . . . 1 . . . 4 1 1 . . . . . . . . . . . . . . . . . Recycling Unit Hacks . | . . . . . . . . . . . . . . . . . . . . . . . . . . . Scanalyzer 9 | . . . 3 . . . 6 . . . . . . . . . . . . . . . . . . . Insert Component 5 | . . . 2 . . . 3 . . . . . . . . . . . . . . . . . . . Analyze 4 | . . . 1 . . . 3 . . . . . . . . . . . . . . . . . . . Garrison Access Hacks 4 | . . . . . . . 1 1 2 . . . . . . . . . . . . . . . . . Seal Access 4 | . . . . . . . 1 1 2 . . . . . . . . . . . . . . . . . Unauthorized Hacks 47 | . 3 . 9 . . . 7 7 3 . . . . 3 . . . . . 8 1 . . 2 2 2 Terminals 34 | . 1 . 7 . . . 5 5 3 . . . . 2 . . . . . 6 1 . . 2 1 1 Track 2 | . . . . . . . . . . . . . . . . . . . . 2 . . . . . . Botnet 25 | . 1 . 5 . . . 5 4 2 . . . . 2 . . . . . 2 1 . . 1 1 1 Detonate 2 | . . . 1 . . . . . . . . . . . . . . . . 1 . . . . . . Disrupt 1 | . . . . . . . . 1 . . . . . . . . . . . . . . . . . . Operators 4 | . . . 1 . . . . . 1 . . . . . . . . . . 1 . . . 1 . . Fabricators 5 | . . . . . . . . . . . . . . 1 . . . . . 2 . . . . 1 1 Prioritize 2 | . . . . . . . . . . . . . . . . . . . . 1 . . . . . 1 Recompile 3 | . . . . . . . . . . . . . . 1 . . . . . 1 . . . . 1 . Repair Stations . | . . . . . . . . . . . . . . . . . . . . . . . . . . . Recycling Units 8 | . 2 . 2 . . . 2 2 . . . . . . . . . . . . . . . . . . Tunnel 8 | . 2 . 2 . . . 2 2 . . . . . . . . . . . . . . . . . . Scanalyzers . | . . . . . . . . . . . . . . . . . . . . . . . . . . . Garrison Access . | . . . . . . . . . . . . . . . . . . . . . . . . . . . Data Cores Recovered 2 | . . . 2 . . . . . . . . . . . . . . . . . . . . . . . Used 1 | . . . 1 . . . . . . . . . . . . . . . . . . . . . . . Hacking Detections 64 | . 6 . 13 . . . 9 11 9 . . . . 3 . . . . . 3 3 . . 3 1 3 Full Trace Events 2 | . . . 1 . . . 1 . . . . . . . . . . . . . . . . . . . Feedback Events . | . . . . . . . . . . . . . . . . . . . . . . . . . . . Feedback Blocked . | . . . . . . . . . . . . . . . . . . . . . . . . . . . Robot Schematics Acquired 10 | . . . . . . . . . . . . 6 . . . . 4 . . . . . . . . . Robots Built . | . . . . . . . . . . . . . . . . . . . . . . . . . . . Authchips . | . . . . . . . . . . . . . . . . . . . . . . . . . . . Time . | . . . . . . . . . . . . . . . . . . . . . . . . . . . Total Robot Build Rating . | . . . . . . . . . . . . . . . . . . . . . . . . . . . Part Schematics Acquired 35 | . 1 . . . . . 2 1 1 . . 12 . 2 . . 15 . . . 1 . . . . . Parts Built 6 | . . . . . . . . . 1 . . . . . . . . . . 1 . . . . 2 2 Authchips 4 | . . . . . . . . . 1 . . . . . . . . . . 1 . . . . 1 1 Time 374 | . . . . . . . . . 93 . . . . . . . . . . 187 . . . . 47 47 Total Part Build Rating 34 | . . . . . . . . . 7 . . . . . . . . . . 7 . . . . 10 10 Parts Repaired 7 | . . . 1 . . . 4 1 1 . . . . . . . . . . . . . . . . . Time 727 | . . . 136 . . . 394 89 108 . . . . . . . . . . . . . . . . . Parts Recycled . | . . . . . . . . . . . . . . . . . . . . . . . . . . . Recycled Matter . | . . . . . . . . . . . . . . . . . . . . . . . . . . . Retrieved Matter . | . . . . . . . . . . . . . . . . . . . . . . . . . . . Retrieved Components . | . . . . . . . . . . . . . . . . . . . . . . . . . . . Parts Scanalyzed 3 | . . . 1 . . . 2 . . . . . . . . . . . . . . . . . . . Part Schematics Acquired 2 | . . . . . . . 2 . . . . . . . . . . . . . . . . . . . Parts Damaged . | . . . . . . . . . . . . . . . . . . . . . . . . . . . Bothacking | -11 -10 -10 -9 -9 -9 -8 -8 -8 -7 -7 -7 -7 -6 -6 -6 -6 -6 -6 -5 -5 -5 -5 -5 -5 -4 -4 ------------ Run | Scr Mat Min Mat Min Exi Min Mat Sto Fac Low Low Dat Pro Fac Low Low Zio Dee Pro Fac Ext Cet Arc Hub Fac Arm Used RIF Installer . | . . . . . . . . . . . . . . . . . . . . . . . . . . . Robots Hacked 7 | . . . . 1 . . . . . . . 1 . . . . 4 1 . . . . . . . . Non-combat 2 | . . . . . . . . . . . . . . . . . 1 1 . . . . . . . . Combat 5 | . . . . 1 . . . . . . . 1 . . . . 3 . . . . . . . . . Robot Hacks Applied 8 | . . . . 2 . . . . . . . 1 . . . . 4 1 . . . . . . . . parse_system 8 | . . . . 2 . . . . . . . 1 . . . . 4 1 . . . . . . . . Relay Couplers Released 5 | . . . . . . . . . 3 . . . . . . . . . . . . . . . 2 . Machine Destruction 5 | . . . . . . . . . 3 . . . . . . . . . . . . . . . 2 . Fabnet Peak Effective % . | . . . . . . . . . . . . . . . . . . . . . . . . . . . Robots Rewired 8 | . . . . . . . . . . . . . 1 . . . . . . . 7 . . . . . Allies Hacked 2 | . . . . . . . . . . . . . . . . . . . . . . 2 . . . . Hacks Repelled . | . . . . . . . . . . . . . . . . . . . . . . . . . . . Allies | -11 -10 -10 -9 -9 -9 -8 -8 -8 -7 -7 -7 -7 -6 -6 -6 -6 -6 -6 -5 -5 -5 -5 -5 -5 -4 -4 -------- Run | Scr Mat Min Mat Min Exi Min Mat Sto Fac Low Low Dat Pro Fac Low Low Zio Dee Pro Fac Ext Cet Arc Hub Fac Arm Total Allies 34 | . . . . 3 . . . 12 . . . . 1 . . . . . . . 18 . . . . . Largest Group 12 | . . . . 3 . . . 12 3 . . . 1 . . . . . . . 7 5 1 1 . . Highest-Rated Group 314 | . . . . 40 . . . 235 48 . . . 32 . . . . . . . 314 113 20 20 . . Highest-Rated Ally 159 | . . . . 16 . . . 31 16 . . . 32 . . . . . . . 159 31 20 20 . . Total Orders 7 | . . 2 . 4 . . . . . . . . . . . . . . . . . . . . . 1 RETURN 7 | . . 2 . 4 . . . . . . . . . . . . . . . . . . . . . 1 Ally Attacks 263 | . . . . 86 . . . 99 7 . . . 2 . . . . . . . 54 2 . . . 13 Total Damage 3555 | . . . . 766 . . . 1380 42 . . . 52 . . . . . . . 1235 41 . . . 39 Kills 25 | . . . . 4 . . . 14 1 . . . . . . . . . . . 6 . . . . . Allies Corrupted 1 | . . . . . . . . 1 . . . . . . . . . . . . . . . . . . Allies Melted 1 | . . . . . . . . . . . . . . . . . . . . . 1 . . . . . Intel | -11 -10 -10 -9 -9 -9 -8 -8 -8 -7 -7 -7 -7 -6 -6 -6 -6 -6 -6 -5 -5 -5 -5 -5 -5 -4 -4 ------- Run | Scr Mat Min Mat Min Exi Min Mat Sto Fac Low Low Dat Pro Fac Low Low Zio Dee Pro Fac Ext Cet Arc Hub Fac Arm Robot Analysis Total 135 | . 3 . 1 . . . 2 . 1 . . 128 . . . . . . . . . . . . . . Derelict Logs Recovered 10 | . . 1 . 1 . . . . . . . . 1 . 1 2 2 . 2 . . . . . . . Drone Launches 18 | . . 3 . 10 . . . . . . . . . . . . . . . . . . . . . 5 Drone Recoveries 15 | . . 3 . 10 . . . . . . . . . . . . . . . . . . . . . 2 Exploration | -11 -10 -10 -9 -9 -9 -8 -8 -8 -7 -7 -7 -7 -6 -6 -6 -6 -6 -6 -5 -5 -5 -5 -5 -5 -4 -4 ------------- Run | Scr Mat Min Mat Min Exi Min Mat Sto Fac Low Low Dat Pro Fac Low Low Zio Dee Pro Fac Ext Cet Arc Hub Fac Arm Turns Passed 29869 | . 1468 1301 3359 1171 608 225 3699 2982 1125 1206 556 262 847 287 923 538 1517 2433 751 705 817 313 699 286 684 1107 Spaces Moved 13494 | 1 570 505 1265 396 238 83 1261 996 731 802 453 167 586 190 719 372 1227 1021 352 293 338 128 44 121 299 336 Core . | . . . . . . . . . . . . . . . . . . . . . . . . . . . Treads 5262 | . 518 505 1265 396 238 83 1261 996 . . . . . . . . . . . . . . . . . . Legs 8232 | 1 52 . . . . . . . 731 802 453 167 586 190 719 372 1227 1021 352 293 338 128 44 121 299 336 Wheels . | . . . . . . . . . . . . . . . . . . . . . . . . . . . Hover . | . . . . . . . . . . . . . . . . . . . . . . . . . . . Flight . | . . . . . . . . . . . . . . . . . . . . . . . . . . . Fastest Speed 100 | 120 120 240 160 240 240 240 240 243 123 123 123 120 120 120 120 120 120 113 183 183 183 183 183 170 170 100 Average Speed 178 | 120 229 240 220 240 240 240 242 243 123 123 123 125 120 120 120 120 120 183 183 183 183 183 183 179 170 160 Slowest Speed 320 | 120 240 240 240 240 240 240 320 243 123 123 123 190 190 190 120 120 190 203 183 183 183 183 183 183 170 180 Overloaded Moves . | . . . . . . . . . . . . . . . . . . . . . . . . . . . Propulsion Burnouts . | . . . . . . . . . . . . . . . . . . . . . . . . . . . Robots Hopped . | . . . . . . . . . . . . . . . . . . . . . . . . . . . Cave-ins Triggered . | . . . . . . . . . . . . . . . . . . . . . . . . . . . Exploration Rate (%) 61 | 1 92 95 97 73 45 33 91 91 29 84 66 81 79 9 79 59 89 86 62 13 73 59 76 21 22 42 Regions Visited 26 Branch Regions 19 Pre-discovered Areas 29 | . 2 . 2 . . . 2 2 . . . 19 . . . . 1 . 1 . . . . . . . Known Exits Taken 14 | . . . 1 . . 1 1 . 1 1 1 1 1 1 1 1 1 . 1 . . . . 1 . . Unknown Exits Taken 12 | 1 1 1 . 1 1 . . 1 . . . . . . . . . 1 . 1 1 1 1 . 1 . Scrap Searched 15 | . . 1 . 2 . . . . . 3 1 . . . 3 . 3 . 2 . . . . . . . Spaces Dug 93 | . . . . . 12 . . 19 10 . . . 3 12 . 1 . . . 9 16 . . 1 10 . Terrain Destroyed 666 | . 8 11 46 8 39 . 32 21 52 13 . 9 11 16 37 16 . 44 13 128 21 . 2 10 83 46 Melee . | . . . . . . . . . . . . . . . . . . . . . . . . . . . Projectile 96 | . . . . 6 . . . 2 1 2 . . 10 16 . 1 . 1 13 11 6 . 1 10 4 12 AOE 564 | . 8 11 46 . 39 . 32 19 51 11 . 9 . . 37 15 . 43 . 117 15 . . . 78 33 Terrain Rammed . | . . . . . . . . . . . . . . . . . . . . . . . . . . . Walls Destroyed . | . . . . . . . . . . . . . . . . . . . . . . . . . . . Machines Disabled . | . . . . . . . . . . . . . . . . . . . . . . . . . . . Actions | -11 -10 -10 -9 -9 -9 -8 -8 -8 -7 -7 -7 -7 -6 -6 -6 -6 -6 -6 -5 -5 -5 -5 -5 -5 -4 -4 --------- Run | Scr Mat Min Mat Min Exi Min Mat Sto Fac Low Low Dat Pro Fac Low Low Zio Dee Pro Fac Ext Cet Arc Hub Fac Arm Total 17909 | . 652 555 1717 540 265 92 1726 1387 888 994 452 204 682 226 775 457 1255 1544 403 431 512 173 652 171 438 718 Wait 2707 | . 1 5 314 68 18 1 268 236 44 156 . 6 45 1 52 78 . 437 20 105 81 1 594 5 59 112 Move 13468 | . 569 504 1264 395 237 82 1260 995 730 801 452 166 585 189 718 371 1226 1020 351 292 337 127 43 120 298 336 Hop . | . . . . . . . . . . . . . . . . . . . . . . . . . . . Pick Up 150 | . 20 5 21 7 . . 21 8 8 5 . 5 2 4 . . 4 8 1 2 5 2 2 3 7 10 Fast Attach 79 | . 2 4 1 . . . 19 8 6 . . 1 5 2 . 2 3 8 . . 2 3 . 2 1 10 Attach 74 | . 2 . 3 2 . . 5 1 7 1 . 1 3 2 . . 2 4 2 5 . . . . 11 23 Detach 18 | . 1 . . . . . 2 1 1 . . . 1 . . . . 1 . . . . . 2 3 6 Swap 201 | . 4 10 20 17 2 . 18 18 23 8 . 7 5 5 3 2 5 15 1 5 6 4 . 5 5 13 Drop 202 | . 6 8 26 11 . . 39 23 16 5 . 5 . 3 . 1 6 23 . . 2 6 2 10 3 7 Fire 931 | . 47 19 68 38 8 9 94 93 52 18 . 11 26 20 2 3 5 25 28 22 27 30 11 24 50 201 Melee 10 | . . . . 2 . . . . . . . 1 . . . . 4 3 . . . . . . . . Ram . | . . . . . . . . . . . . . . . . . . . . . . . . . . . Kick 2 | . . . . . . . . . 1 . . . . . . . . . . . . . . . 1 . Crush . | . . . . . . . . . . . . . . . . . . . . . . . . . . . Escape Stasis . | . . . . . . . . . . . . . . . . . . . . . . . . . . . Rewire 62 | . . . . . . . . . . . . . 10 . . . . . . . 52 . . . . . Trap 5 | . . . . . . . . 4 . . . 1 . . . . . . . . . . . . . . Miscellaneous . | . . . . . . . . . . . . . . . . . . . . . . . . . . . Route ------- -11/Scrapyard -10/Materials (discovered 4 exits: *Mat x3 / *Min) -10/Mines (discovered 2 exits: *Mat x2) -9/Materials (discovered 4 exits: *Mat x3 / *Min) -9/Mines (discovered 2 exits: *Mat / *Exi) -9/Exiles -8/Mines -8/Materials (discovered 4 exits: *Fac x2 / *Sto x2) -8/Storage (discovered 2 exits: *Fac / Rec) -7/Factory (discovered 2 exits: *Low x2) -7/Lower Caves (discovered 2 exits: *Low / *Dat) -7/Lower Caves -7/Data Miner -6/Proximity Caves -6/Factory (discovered 2 exits: *Low x2) -6/Lower Caves -6/Lower Caves -6/Zion (discovered 2 exits: *Dee / [*Pro]) -6/Deep Caves -5/Proximity Caves -5/Factory -5/Extension (discovered 2 exits: *Fac / [*Cet]) -5/Cetus (discovered 2 exits: *Fac / [*Arc]) -5/Archives (discovered 3 exits: *Fac / *Hub x2) -5/Hub_04(d) (discovered 4 exits: *Fac x4) -4/Factory (discovered 2 exits: [*Res] / *Arm) -4/Armory (discovered 1 exit: [*Res]) History --------- Turn | Location | Event 1 | -11/Scrapyard | Discovered new exit (range 0) 1 | -11/Scrapyard | Entered Materials 305 | -10/Materials | Build established: Mutant 472 | -10/Materials | Discovered new exit (range 8) 824 | -10/Materials | Discovered new exit (range 6) 1332 | -10/Materials | Discovered new exit (range 7) 1433 | -10/Materials | Discovered new exit (range 8) 1469 | -10/Materials | Entered Mines 1693 | -10/Mines | Found a hidden stash of uninstalled traps 1735 | -10/Mines | Found the Drone Emporium 1748 | -10/Mines | Found Prototype Device 1749 | -10/Mines | Identified Thief Drone Bay 1826 | -10/Mines | Discovered new exit (range 5) 1942 | -10/Mines | Found a damaged Exp. Sensor Array with a note attached 1947 | -10/Mines | Found Prototype Device 2062 | -10/Mines | Learned Materials security intel 2143 | -10/Mines | YI-UF0 nonchalantly dropped a Grenade Launcher on the ground 2183 | -10/Mines | Destroyed YI-UF0 2194 | -10/Mines | Found Corrupted Prototype Launcher 2194 | -10/Mines | Identified YI-UF0's Doublenader 2258 | -10/Mines | Discovered new exit (range 9) 2770 | -10/Mines | Entered Materials 2770 | -9/Materials | Evolved 2 slots: Propulsion x1, Utility x1 2792 | -9/Materials | Identified Exp. Sensor Array 2990 | -9/Materials | Destroyed 10 combat bots 3073 | -9/Materials | Discovered new exit (range 9) 3203 | -9/Materials | Discovered new exit (range 16) 3235 | -9/Materials | Identified exit to Mines 3240 | -9/Materials | Build established: Scavenger-Mutant 3593 | -9/Materials | Repaired Broken Exp. Sensor Array 3708 | -9/Materials | Discovered new exit (range 11) 4166 | -9/Materials | Identified exit to Materials 4774 | -9/Materials | Build established: Hacker-Mutant 6129 | -9/Materials | Entered Mines 6235 | -9/Mines | Assisted by bots powering up and referring to "LRC-V3" 6434 | -9/Mines | Build established: Mutant 6545 | -9/Mines | Discovered exit to Materials (range 8) 6776 | -9/Mines | Assembled infested the area 6811 | -9/Mines | Met 8R-AWN 6826 | -9/Mines | Learned 2 Materials zone layouts 6843 | -9/Mines | Attacked by 8R-AWN 6967 | -9/Mines | Found AS-neutralizer No. 17b 7030 | -9/Mines | Found 8R-AWN's Boregun 7031 | -9/Mines | Found 8R-AWN's Boregun 7066 | -9/Mines | Destroyed 8R-AWN 7288 | -9/Mines | Discovered new exit (range 5) 7300 | -9/Mines | Entered Exiles 7300 | -9/Exiles | Attacked by the Exiles 7351 | -9/Exiles | Destroyed 7 combat bots 7367 | -9/Exiles | Discovered new exit (range 14) 7908 | -9/Exiles | Entered Mines 8100 | -8/Mines | Discovered exit to Materials (range 7) 8133 | -8/Mines | Entered Materials 8133 | -8/Materials | Evolved 2 slots: Utility x2 8439 | -8/Materials | Build established: Hacker-Mutant 8583 | -8/Materials | Central database locked down 8742 | -8/Materials | Discovered new exit (range 15) 8764 | -8/Materials | Discovered new exit (range 18) 9745 | -8/Materials | Repaired Broken Exp. Sensor Array? 10209 | -8/Materials | Discovered new exit (range 4) 10849 | -8/Materials | Repaired Adv. Myomer Leg 10880 | -8/Materials | Build established: Mutant 11163 | -8/Materials | Repaired Adv. Myomer Leg 11224 | -8/Materials | Repaired Prc. Beam Rifle 11286 | -8/Materials | Discovered new exit (range 14) 11431 | -8/Materials | Identified exit to Storage 11832 | -8/Materials | Entered Storage 12362 | -8/Storage | Found Prototype Protection 12373 | -8/Storage | Identified Lgt. Regenerative Plating 12384 | -8/Storage | Found Corrupted Lgt. Regenerative Plating 12387 | -8/Storage | Found Corrupted Lgt. Regenerative Plating 12391 | -8/Storage | Found Corrupted Lgt. Regenerative Plating 12817 | -8/Storage | Discovered new exit (range 8) 12861 | -8/Storage | Garrison activated, responded to threat 13001 | -8/Storage | Identified exit to Recycling 13629 | -8/Storage | Met a pair of Derelict thieves 13702 | -8/Storage | Assisted by bots powering up and referring to "LRC-V3" 14015 | -8/Storage | Repaired Exp. Heat Sink 14812 | -8/Storage | System corruption reached 10% 14814 | -8/Storage | Entered Factory 14814 | -7/Factory | Accompanied by 3 allies 14814 | -7/Factory | Evolved 2 slots: Utility x2 15145 | -7/Factory | Build established: Skirmisher 15150 | -7/Factory | Identified exit to Lower Caves 15553 | -7/Factory | Repaired Exp. Sensor Array 15821 | -7/Factory | Fabricated Adv. Myomer Leg (x1) 15939 | -7/Factory | Entered Lower Caves 16659 | -7/Lower Caves | Encountered a Warlord checkpoint 16831 | -7/Lower Caves | A Derelict revealed a hidden shortcut to meet someone special 16833 | -7/Lower Caves | Identified exit to Data Miner 16899 | -7/Lower Caves | Discovered new exit (range 13) 17144 | -7/Lower Caves | Identified exit to Lower Caves 17145 | -7/Lower Caves | Entered another Lower Caves area 17612 | -7/Lower Caves | Discovered exit to Data Miner (range 8) 17701 | -7/Lower Caves | Entered Data Miner 17701 | -7/Data Miner | Discovered new exit (range 6) 17720 | -7/Data Miner | Met Data Miner 17748 | -7/Data Miner | Learned location of Section 7 (-3) 17748 | -7/Data Miner | Acquired the access code to Warlord's prototype stash 17770 | -7/Data Miner | Received God Mode back door access code from Data Miner 17850 | -7/Data Miner | Interfaced with the Data Conduit 17962 | -7/Data Miner | Identified exit to Proximity Caves 17963 | -7/Data Miner | Entered Proximity Caves 18361 | -6/Proximity Caves | Attracted the attention of an 0b10 outpost 18452 | -6/Proximity Caves | Destroyed 7 combat bots 18694 | -6/Proximity Caves | Learned Factory emergency access door positions 18755 | -6/Proximity Caves | Discovered new exit (range 5) 18761 | -6/Proximity Caves | Identified exit to Factory 18810 | -6/Proximity Caves | Entered Factory 18810 | -6/Factory | Evolved 2 slots: Power x1, Utility x1 18812 | -6/Factory | Loaded intel: 218 machine locations 18857 | -6/Factory | Identified exit to Lower Caves 19097 | -6/Factory | Entered Lower Caves 19202 | -6/Lower Caves | Build established: Mutant 19239 | -6/Lower Caves | Learned Factory emergency access door positions 19573 | -6/Lower Caves | Build established: Skirmisher 19773 | -6/Lower Caves | Learned Factory trap positions 19773 | -6/Lower Caves | Learned Research emergency access door positions 19773 | -6/Lower Caves | Learned Research terminal intel 19773 | -6/Lower Caves | Learned Armory terminal intel 19876 | -6/Lower Caves | Discovered new exit (range 21) 19940 | -6/Lower Caves | Identified exit to Lower Caves 20020 | -6/Lower Caves | Entered another Lower Caves area 20026 | -6/Lower Caves | Spotted B-75 Beast 20254 | -6/Lower Caves | Learned Factory emergency access door positions 20256 | -6/Lower Caves | Learned 4 Factory zone layouts 20483 | -6/Lower Caves | Found Alien Artifact 20483 | -6/Lower Caves | Identified Core Expander 20483 | -6/Lower Caves | Installed Core Expander, added new Utility slot 20548 | -6/Lower Caves | Discovered new exit (range 8) 20557 | -6/Lower Caves | Identified exit to Zion 20558 | -6/Lower Caves | Entered Zion 20690 | -6/Zion | System corruption cleaned by Quarantine Array 20720 | -6/Zion | Received a hallucinogenic algorithm 20731 | -6/Zion | Discovered new exit (range 15) 20875 | -6/Zion | Given the Hacking Drone Bay 21018 | -6/Zion | Learned Factory interactive machine intel 21213 | -6/Zion | Learned Factory trap positions 21427 | -6/Zion | Found Prototype Special Weapon 21429 | -6/Zion | Found Prototype Special Weapon 21520 | -6/Zion | Build established: Assassin 21523 | -6/Zion | Acquired unknown access codes intercepted by a Zionite 21971 | -6/Zion | Found Prototype Special Weapon 22052 | -6/Zion | Opened final containment barrier to the Deep Caves 22070 | -6/Zion | Discovered new exit (range 4) 22070 | -6/Zion | Saw the warning signs outside the Deep Caves entrance 22073 | -6/Zion | Identified exit to Deep Caves 22075 | -6/Zion | Entered Deep Caves 22171 | -6/Deep Caves | Identified RU-N14's Throwing Claymores (x3) 22227 | -6/Deep Caves | Attacked by Z-Imprinter 22230 | -6/Deep Caves | Destroyed Z-Imprinter 22270 | -6/Deep Caves | Build established: Mutant 22403 | -6/Deep Caves | Z-Facility disabled 22567 | -6/Deep Caves | Found Prototype Protection 22567 | -6/Deep Caves | Identified Zio. Weapon Casing 22945 | -6/Deep Caves | Discovered new exit (range 7) 23113 | -6/Deep Caves | Spotted as-52201 23170 | -6/Deep Caves | Destroyed as-52201 23224 | -6/Deep Caves | Spotted as-27245 23227 | -6/Deep Caves | Triggered Deep Caves wall 23227 | -6/Deep Caves | Spotted AS-63761 23227 | -6/Deep Caves | Spotted AS-69999 23246 | -6/Deep Caves | Destroyed AS-63761 23254 | -6/Deep Caves | Destroyed AS-69999 23271 | -6/Deep Caves | Exposed GOLEM chamber 23274 | -6/Deep Caves | Found GOLEM Unit 23611 | -6/Deep Caves | Found Surveybot 24 Scanner 23614 | -6/Deep Caves | Found Surveybot 24 Chip 24156 | -6/Deep Caves | Found Prototype Protection 24156 | -6/Deep Caves | Identified Zio. Heavy Carapace 24367 | -6/Deep Caves | Found GOLEM Unit 24373 | -6/Deep Caves | Found GOLEM Unit 24508 | -6/Deep Caves | Entered Proximity Caves 24516 | -5/Proximity Caves | Identified exit to Factory 24752 | -5/Proximity Caves | Attracted the attention of an 0b10 checkpoint 24829 | -5/Proximity Caves | Spotted B-75 Beast 24863 | -5/Proximity Caves | Destroyed B-75 Beast 25259 | -5/Proximity Caves | Entered Factory 25259 | -5/Factory | Evolved 2 slots: Utility x2 25261 | -5/Factory | Loaded intel: 115 trap records 25263 | -5/Factory | Loaded intel: 273 machine locations 25264 | -5/Factory | Loaded intel: 53 interactive machine locations 25357 | -5/Factory | Spotted B-75 Beast 25659 | -5/Factory | Fabricated Adv. Myomer Leg (x1) 25704 | -5/Factory | Build established: Hacker-Mutant 25850 | -5/Factory | Destroyed B-75 Beast 25948 | -5/Factory | Discovered new exit (range 10) 25964 | -5/Factory | Entered Extension 25965 | -5/Extension | Loaded intel: 36 machine locations 26040 | -5/Extension | Rescued a captive Derelict 26040 | -5/Extension | Rescued a captive Derelict 26184 | -5/Extension | Rescued a captive Derelict 26190 | -5/Extension | Rescued a captive Derelict 26314 | -5/Extension | Spotted B-75 Beast 26326 | -5/Extension | Rescued A7 26346 | -5/Extension | Spotted B-75 Beast 26362 | -5/Extension | Allies destroyed B-75 Beast 26369 | -5/Extension | Allies destroyed B-75 Beast 26376 | -5/Extension | Extracted ID and sensor layout for unrecognized location from A7's data core 26413 | -5/Extension | Rescued a captive Derelict 26413 | -5/Extension | Rescued a captive Derelict 26451 | -5/Extension | Rescued a captive Derelict 26452 | -5/Extension | Rescued a captive Derelict 26547 | -5/Extension | Energy Cycler disabled 26548 | -5/Extension | Rescued a captive Derelict 26552 | -5/Extension | Rescued a captive Derelict 26552 | -5/Extension | Rescued a captive Derelict 26558 | -5/Extension | Rescued a captive Derelict 26559 | -5/Extension | Rescued a captive Derelict 26563 | -5/Extension | Rescued a captive Derelict 26759 | -5/Extension | Discovered new exit (range 10) 26761 | -5/Extension | Discovered new exit (range 6) 26781 | -5/Extension | Entered Cetus 26781 | -5/Cetus | Accompanied by 5 allies 26782 | -5/Cetus | Loaded intel: 24 machine locations 26801 | -5/Cetus | Spotted Cetus Guard 26803 | -5/Cetus | Spotted Cetus Guard 26806 | -5/Cetus | Spotted Cetus Guard 26808 | -5/Cetus | Destroyed Cetus Guard 26811 | -5/Cetus | Destroyed Cetus Guard 26812 | -5/Cetus | Spotted Cetus Guard 26820 | -5/Cetus | Destroyed Cetus Guard 26822 | -5/Cetus | Destroyed Cetus Guard 26919 | -5/Cetus | Discovered new exit (range 22) 26956 | -5/Cetus | Spotted Cetus Guard 26956 | -5/Cetus | Spotted Cetus Guard 26959 | -5/Cetus | Spotted Cetus Guard 26959 | -5/Cetus | Spotted Cetus Guard 26960 | -5/Cetus | Destroyed Cetus Guard 26964 | -5/Cetus | Destroyed Cetus Guard 26975 | -5/Cetus | Destroyed Cetus Guard 26986 | -5/Cetus | Destroyed Cetus Guard 26996 | -5/Cetus | Discovered new exit (range 21) 27032 | -5/Cetus | Met Revision 17 27094 | -5/Cetus | Entered Archives 27094 | -5/Archives | Accompanied by 1 ally 27095 | -5/Archives | Loaded intel: 8 machine locations 27159 | -5/Archives | Discovered new exit (range 22) 27168 | -5/Archives | Discovered new exit (range 22) 27168 | -5/Archives | Discovered new exit (range 18) 27793 | -5/Archives | Entered Hub_04(d) 27793 | -5/Hub_04(d) | Accompanied by 1 ally 27794 | -5/Hub_04(d) | Loaded intel: 93 machine locations 27852 | -5/Hub_04(d) | Identified exit to Factory 27914 | -5/Hub_04(d) | Network Hub disabled 27945 | -5/Hub_04(d) | Spotted Lightning 27951 | -5/Hub_04(d) | Destroyed Lightning 27951 | -5/Hub_04(d) | Spotted Lightning 27952 | -5/Hub_04(d) | Spotted Lightning 27973 | -5/Hub_04(d) | Destroyed Lightning 27979 | -5/Hub_04(d) | Destroyed Lightning 28009 | -5/Hub_04(d) | Found Prototype Energy Cannon 28009 | -5/Hub_04(d) | Identified EMDS 28020 | -5/Hub_04(d) | Found EMDS 28030 | -5/Hub_04(d) | Found Exp. EM Disruption Field 28079 | -5/Hub_04(d) | Entered Factory 28079 | -4/Factory | Evolved 2 slots: Utility x2 28080 | -4/Factory | Loaded intel: 75 trap records 28082 | -4/Factory | Loaded intel: 249 machine locations 28130 | -4/Factory | Spotted B-86 Titan 28142 | -4/Factory | Destroyed B-86 Titan 28221 | -4/Factory | Fabricated Adv. Terrain Scanner (x2) 28272 | -4/Factory | Build established: Scavenger-Mutant 28579 | -4/Factory | First assault squad dispatched 28583 | -4/Factory | Build established: Scavenger-Skirmisher 28655 | -4/Factory | Discovered new exit (range 21) 28669 | -4/Factory | Destroyed 7 combat bots 28722 | -4/Factory | Discovered new exit (range 19) 28763 | -4/Factory | Entered Armory 28764 | -4/Armory | Loaded intel: 66 machine locations 28765 | -4/Armory | Loaded intel: 15 terminal locations 28967 | -4/Armory | Fabricated Adv. Signal Interpreter (x2) 29004 | -4/Armory | Destroyed 7 combat bots 29104 | -4/Armory | Found Gamma Bomb Array 29211 | -4/Armory | Destroyed 13 combat bots 29304 | -4/Armory | First assault squad dispatched 29341 | -4/Armory | Discovered new exit (range 14) 29363 | -4/Armory | Lost 4 parts (1p3u) 29390 | -4/Armory | Destroyed 12 combat bots 29528 | -4/Armory | Spotted B-86 Titan 29555 | -4/Armory | Destroyed 11 combat bots 29592 | -4/Armory | Destroyed B-86 Titan 29664 | -4/Armory | Lost 7 parts (1p1n4u1w) 29853 | -4/Armory | Core integrity fell below 50% 29870 | -4/Armory | Self-destructed Last Messages --------------- 29855_ System corrupted: Enh. Nova Cannon failed to cycle. 29855_ Penetrated by Slug. 29861_ Destroyed Imp. Treads. 29861_ Adv. Gravity Neutralizer destroyed. 29861_ System corrupted by crushing effect (+2). 29863_ Penetrated by Slug. 29863_ Critical hit (Destroy). 29863_ Enh. Nova Cannon destroyed. 29864_ B-60 Warrior overheating. 29866_ B-60 Warrior heat damages Imp. Medium Armor Plating, Hvy. Mace, Imp. Treads. 29866_ B-60 Warrior overheating. 29866_ Slug penetrates Wall. 29867_ B-60 Warrior overheating. 29867_ C-30 ARC bursts open, deploying its payload. 29867_ G-73 Enforcer unfolds itself. 29867_ G-67 Veteran unfolds itself. 29868_ Imp. Treads melted. 29868_ B-60 Warrior destroyed. 29869_ Surveybot 24 Chip destroyed. Map ----- +----------------------------------------------------+ | ???????????????????????????????"??"???"T????????"" | | ???????????????????????????????"??"???""????????"" | | ???????????????????????????##??"??"???""????????"" | | ??????????????????????????? #???????????????????? | | ????????????????????????"""" ###???????????+###### | | ??????????????????????????? + ???????????? | | ??????????????????????????? # #???????######## | | ????????????????????????"""" # #???????# # | | ?????????????????????????? #=#???##### + | | ???????????????????????#####!#=##### [ # #### | | ???????????????????????#%%% =!%!%[ =[ + # | | ???????????????????????##%##+#!##### # # | | ????????????????????????#m# ??##### # | | ???????????????????????##*# #?????######## | | ?????????????T?????????#!%# #????????????# | | ???????????????????????##=# "Y" #????????????#### | | ????????????????????????#=# """ #?????????????### | | ????????????????????????#|# #?????????????### | | ????????????????????????#m########?????????????### | | ????????????????????????#/# #?????????????### | | ????????????????????????#%+! "" #????????????#### | | ????????????????????????#=# """#?????????????### | | ????????????????????????#m#?? R"#?????????????### | | ??????????????????????###g#???"""#?????????????### | | ????????????# ## ##;gg#??????#?????????????### | | "???????????# Y%@#????????????????????### | | ????????????# #### ###%;#????????????????????### | | ???????????????????????####?????????????????????## | | ????????????????????????????????????????????????## | | ??????????????????????""?????????????????????????# | | ????????"T"???????????"""????????????????????????# | | ???????????????????????R"????????????????????????? | | ??????????????????????"""????????????????????????? | | ?????????????????????????????????????????????????? | | ?????????????????????????????????????????????????? | | ?????????????????????????????????????????????????? | | ?????????????????????????????????????????????????? | | ?????????????????????????????????????????????????? | | ?????????????????????????????????????????????????? | | ?????????????????????????????????????????????????? | | ???????????????"""???????"""""???????????????????? | | ???????????????"""???????"""""???????????????????? | | ???????????????"""???????"""""???????????????????? | | ???????????????"""???????????????????????????????? | | ???????????????"""???????????????????????????????? | | ?????????????????????????????????????????????????? | | ????????????????????????""T""????????????????????? | | ????????????????????????"""""????????????????????? | | ?????????????????????????????????????????????????? | | ?????????????????????????????????????????????????? | +----------------------------------------------------+ Best States ------------- Heat Dissipation 92 Coolant Potential 100 Energy Generation 57 Energy Capacity 1600 Matter Stores 300 Matter Capacity 300 Sight Range 22 Robot Scan Range 20 Terrain Scan Range 24 Terrain Scan Density 2010 Power Amplification 30 Additional Mass Support 16 Armor Coverage 1350 Resistance: KI 35 Resistance: TH 35 Resistance: EX 70 Resistance: EM 95 Resistance: I 35 Resistance: S 35 Resistance: P 35 Propulsion Shielding 33 Utility Shielding 66 Weapon Shielding 100 Weapon Cycling 25 Evasion (%) 55 Targeting Accuracy 8 Core Analysis 6 Recoil Reduction 3 Energy Filtering 30 Particle Charging 25 Offensive Hacking 10 Defensive Hacking 12 Authchip Count 1 Item Schematics ----------------- Huge Storage Unit | -10/Materials | Hacked Adv. Myomer Leg | -8/Materials | Scanalyzed Cmb. Airjet | -8/Materials | Scanalyzed Adv. Terrain Scanner | -8/Storage | Hacked Adv. System Restoration Module | -7/Factory | Hacked Combat Drone Bay | -7/Data Miner | Free Lgt. Regenerative Plating | -7/Data Miner | Free Cld. Aerolev Unit | -7/Data Miner | Free Exp. Propulsion Shielding | -7/Data Miner | Free Cld. Plasma Cannon | -7/Data Miner | Free Linear Gravjet | -7/Data Miner | Free Imp. Shock Absorption System | -7/Data Miner | Free Imp. Plasma Cutter | -7/Data Miner | Free Fusion Compressor | -7/Data Miner | Free Tesla Rifle | -7/Data Miner | Free Imp. Remote Datajack | -7/Data Miner | Free Adv. Focal Shield | -7/Data Miner | Free Adv. Signal Interpreter | -6/Factory | Hacked Adv. Target Analyzer | -6/Factory | Hacked KE Penetrator | -6/Zion | Archive Power Amplifier | -6/Zion | Archive Imp. System Guard | -6/Zion | Archive Hvy. Gauss Cannon | -6/Zion | Archive Imp. Hacking Suite | -6/Zion | Archive Imp. Recalibrator | -6/Zion | Archive EM Disruption Field | -6/Zion | Archive Lrn. Proton Cannon | -6/Zion | Archive Imp. Kinecellerator | -6/Zion | Archive Imp. Cryofiber Web | -6/Zion | Archive Plasma Flamer | -6/Zion | Archive Imp. Component Analysis Suite | -6/Zion | Archive Imp. System Shield | -6/Zion | Archive Enh. Gauss Cannon | -6/Zion | Archive Hvy. Machine Gun | -6/Zion | Archive Adv. Weapon Cycler | -5/Extension | Hacked Robot Schematics ------------------ H-55 Commando | -7/Data Miner | Free A-15 Conveyor | -7/Data Miner | Free X-62 Marksman | -7/Data Miner | Free Y-54 Guardian | -7/Data Miner | Free G-50 Soldier | -7/Data Miner | Free P-70 Sage | -7/Data Miner | Free A-02 Transporter | -6/Zion | Archive H-66 Slayer | -6/Zion | Archive R-10 Processor | -6/Zion | Archive X-77 Beamer | -6/Zion | Archive Fabricated ------------ Adv. Myomer Leg | x1 | -7/Factory | Authchip Adv. Myomer Leg | x1 | -5/Factory | Authchip Adv. Terrain Scanner | x2 | -4/Factory | Authchip Adv. Signal Interpreter | x2 | -4/Armory | Authchip Alien Tech Used ----------------- Core Expander Achievements -------------- None Challenges ------------ None Game ------ Seed PointCombatCompressor Manual? 0 Play Time 03:01:55 Cumulative 198.1 hours Start 2022.05.16 @ 20:12:36 End 2022.05.16 @ 23:16:16 Sessions 1 Manual Loads 0 Difficulty Adventurer Special Mode None Game No. 95 Rogue 0 Adventurer 95 Explorer 0 Win Type - Total 14 Types 8/1/1/1/1/0/0/1/1 Lore% 88 Gallery% 85 Achievement% 75 Wizard Run 0 Options --------- ASCII 0 Keyboard 1 Movement Numpad Keybinds 0 Fullscreen 2 Font 18/SmallcapsGlow Map View 76x50 Tactical HUD 1 Map Filters NONE Filters NONE Steam 1 RUN: 4365a2e6-4fb3-4c62-80ba-48ccaee99176